bitfinex-derivatives/quotes_BTCF0:USTF0_20250308
["timestamp","ask_amount","ask_price","bid_price","bid_amount"]
[1741423501221,0.1914571,86112.0,86111.0,0.16279219]
[1741423501406,0.3181571,86112.0,86111.0,0.16279219]
[1741423501611,0.3181571,86112.0,86111.0,0.03999219]
[1741423504217,0.3181571,86112.0,86111.0,0.16529219]
[1741423505012,0.25284159,86112.0,86111.0,0.16529219]
[1741423505522,0.08400898,86112.0,86111.0,0.16529219]
[1741423505718,0.20014608,86112.0,86111.0,0.16529219]
[1741423508018,0.20014608,86112.0,86111.0,0.28143059]
[1741423508019,0.07532,86112.0,86111.0,0.28143059]
[1741423508227,0.07532,86112.0,86111.0,0.16529219]
[1741423508526,0.07532,86115.0,86111.0,0.16529219]
[1741423508721,0.1161353,86114.0,86111.0,0.16529219]
[1741423509024,0.1161353,86114.0,86112.0,0.03986998]
[1741423509222,0.04172138,86116.0,86115.0,0.116133]
[1741423509415,0.15425416,86119.0,86115.0,0.03986998]
[1741423509717,0.1161303,86117.0,86116.0,0.15986998]
[1741423510223,0.15673642,86117.0,86116.0,0.15986998]
[1741423510420,0.04060612,86117.0,86116.0,0.27600168]
[1741423510624,0.1161258,86121.0,86116.0,0.27600168]
[1741423510925,0.15750493,86121.0,86118.0,0.1161284]
[1741423511221,0.00017418,86124.0,86119.0,0.16526998]
[1741423511528,0.07532,86123.0,86122.0,0.1161232]
[1741423511825,0.23282133,86123.0,86122.0,0.03986998]
[1741423512120,0.11669913,86123.0,86122.0,0.03986998]
[1741423512422,0.11669913,86123.0,86122.0,0.15599358]
[1741423513626,0.11669913,86123.0,86122.0,0.03986998]
[1741423513820,0.23282133,86123.0,86122.0,0.03986998]
[1741423514825,0.11669913,86123.0,86122.0,0.15599358]
[1741423515222,0.11669913,86123.0,86122.0,0.03986998]
[1741423515529,0.05082318,86121.0,86120.0,0.03986998]
[1741423515728,0.05082318,86121.0,86120.0,0.10576998]
[1741423515925,0.05082318,86121.0,86120.0,0.17116998]
[1741423516232,0.11212318,86121.0,86120.0,0.17116998]
[1741423516427,0.17552318,86121.0,86120.0,0.17116998]
[1741423517731,0.05082318,86121.0,86120.0,0.17116998]
[1741423518428,0.1161249,86121.0,86120.0,0.17116998]
[1741423520028,0.0649,86122.0,86120.0,0.17116998]
[1741423520226,0.0649,86122.0,86121.0,0.1161249]
[1741423520431,0.10221912,86123.0,86121.0,0.15599488]
[1741423520637,0.10221912,86123.0,86121.0,0.27839488]
[1741423520827,0.10221912,86123.0,86122.0,0.21879358]
[1741423521336,0.04137913,86123.0,86122.0,0.34119358]
[1741423521535,0.00017418,86124.0,86123.0,0.1161222]
[1741423521724,0.00017418,86124.0,86123.0,0.15599218]
[1741423521921,0.00017418,86124.0,86123.0,0.28169218]
[1741423522433,0.00017418,86124.0,86123.0,0.16556998]
[1741423522737,0.04240149,86124.0,86123.0,0.28169218]
[1741423523033,0.00017418,86124.0,86123.0,0.28169218]
[1741423523443,0.00017418,86124.0,86123.0,0.16556998]
[1741423523634,0.11629508,86124.0,86123.0,0.16556998]
[1741423524028,0.15686623,86124.0,86123.0,0.16556998]
[1741423524428,0.28566623,86124.0,86123.0,0.16556998]
[1741423525939,0.28566623,86124.0,86123.0,0.08648613]
[1741423526238,0.0580611,86123.0,86108.0,0.11788409]
[1741423526429,0.19784861,86123.0,86108.0,0.11788409]
[1741423526742,0.116133,86115.0,86114.0,0.04019098]
[1741423526923,0.1741965,86117.0,86114.0,0.04019098]
[1741423527127,0.303633,86116.0,86114.0,0.04019098]
[1741423527428,0.303633,86116.0,86111.0,0.11626021]
[1741423527429,0.303633,86116.0,86115.0,0.04019098]
[1741423527940,0.1875,86116.0,86115.0,0.15632398]
[1741423528435,0.12219705,86116.0,86115.0,0.15632398]
[1741423528829,0.12219705,86116.0,86115.0,0.04019098]
[1741423529030,0.23832875,86116.0,86115.0,0.10379098]
[1741423529233,0.17302584,86116.0,86115.0,0.10379098]
[1741423529431,0.17302584,86116.0,86115.0,0.16619098]
[1741423531040,0.05689414,86116.0,86115.0,0.16619098]
[1741423531237,0.05689414,86116.0,86115.0,0.28232398]
[1741423531641,0.17302584,86116.0,86115.0,0.16619098]
[1741423534531,0.17302584,86116.0,86115.0,0.10379098]
[1741423535132,0.53382584,86116.0,86115.0,0.10379098]
[1741423536335,0.41769414,86116.0,86115.0,0.10379098]
[1741423536529,0.41769414,86116.0,86115.0,0.21992398]
[1741423537950,0.41769414,86116.0,86115.0,0.10379098]
[1741423539243,0.53382584,86116.0,86115.0,0.10379098]
[1741423541746,0.468516,86116.0,86115.0,0.10379098]
[1741423542736,0.468516,86116.0,86115.0,0.16669098]
[1741423543844,0.4032062,86116.0,86115.0,0.16669098]
[1741423544035,0.3608,86116.0,86115.0,0.16669098]
[1741423544236,0.3608,86116.0,86115.0,0.28282398]
[1741423545046,0.4769317,86116.0,86115.0,0.28282398]
[1741423545545,0.3608,86116.0,86115.0,0.28282398]
[1741423546442,0.07532,86119.0,86118.0,0.116129]
[1741423546643,0.07532,86119.0,86118.0,0.15631998]
[1741423547244,0.1914476,86119.0,86118.0,0.04019098]
[1741423547850,0.07532,86119.0,86118.0,0.15631998]
[1741423549751,0.07532,86119.0,86118.0,0.21591998]
[1741423550150,0.19562,86119.0,86118.0,0.21591998]
[1741423550849,0.116116,86128.0,86123.0,0.1161222]
[1741423551146,0.36188001,86125.0,86123.0,0.15631318]
[1741423551342,0.066,86127.0,86123.0,0.15631318]
[1741423551538,0.04057115,86124.0,86123.0,0.15631318]
[1741423551744,0.04144546,86127.0,86125.0,0.1161188]
[1741423551944,0.04144546,86127.0,86126.0,0.16149098]
[1741423552151,0.04144546,86127.0,86126.0,0.22269098]
[1741423552352,0.09222039,86127.0,86126.0,0.22269098]
[1741423552552,0.04144546,86127.0,86126.0,0.22269098]
[1741423553138,0.1161159,86128.0,86126.0,0.22269098]
[1741423553638,0.1161159,86128.0,86127.0,0.04019098]
[1741423553841,0.16750403,86128.0,86127.0,0.04019098]
[1741423554049,0.16750403,86128.0,86127.0,0.16509098]
[1741423554845,0.22780403,86128.0,86127.0,0.16509098]
[1741423557458,0.58860403,86128.0,86127.0,0.05042098]
[1741423557754,0.1161371,86112.0,86111.0,0.36096221]
[1741423557953,0.0580656,86117.0,86111.0,0.36096221]
[1741423558143,0.064,86114.0,86113.0,0.1161357]
[1741423558843,0.0629,86116.0,86111.0,0.36152221]
[1741423559048,0.0629,86113.0,86112.0,0.1768371]
[1741423560143,0.1790357,86113.0,86112.0,0.0607]
[1741423560351,0.0629,86113.0,86112.0,0.0607]
[1741423560558,0.1790357,86113.0,86112.0,0.0607]
[1741423560851,0.1790357,86113.0,86112.0,0.1203]
[1741423561057,0.1790357,86113.0,86112.0,0.0596]
[1741423561657,0.11372683,86113.0,86112.0,0.0596]
[1741423562156,0.0641,86114.0,86112.0,0.0596]
[1741423562352,0.1161357,86113.0,86112.0,0.0596]
[1741423562650,0.0641,86114.0,86112.0,0.0596]
[1741423562851,0.0641,86114.0,86112.0,0.1235]
[1741423563756,0.0661,86113.0,86112.0,0.1235]
[1741423564157,0.0661,86113.0,86112.0,0.2396371]
[1741423564454,0.07640001,86116.0,86112.0,0.1235]
[1741423564655,0.0658,86115.0,86113.0,0.1161352]
[1741423564850,0.0658,86115.0,86112.0,0.1235]
[1741423564851,0.1319,86115.0,86112.0,0.1235]
[1741423565053,0.1319,86115.0,86114.0,0.1161344]
[1741423565245,0.1319,86115.0,86112.0,0.1235]
[1741423565556,0.1161349,86114.0,86112.0,0.1235]
[1741423565753,0.1161349,86114.0,86112.0,0.239637]
[1741423566057,0.0658,86113.0,86112.0,0.1235]
[1741423566247,0.1819357,86113.0,86112.0,0.1235]
[1741423566447,0.2482357,86113.0,86112.0,0.1235]
[1741423566954,0.1161425,86108.0,86100.0,0.4614]
[1741423567251,0.1161425,86108.0,86100.0,0.4608]
[1741423567758,0.1161425,86108.0,86101.0,4e-05]
[1741423567961,0.2434425,86108.0,86101.0,4e-05]
[1741423568352,0.2434425,86108.0,86100.0,0.4608]
[1741423568752,0.2434425,86108.0,86101.0,4e-05]
[1741423569153,0.17812857,86108.0,86101.0,4e-05]
[1741423570062,0.17812857,86108.0,86101.0,0.05974]
[1741423571756,0.11281464,86108.0,86101.0,0.05974]
[1741423572155,0.11281464,86108.0,86102.0,0.0626]
[1741423572764,0.22895714,86108.0,86103.0,0.0656]
[1741423573363,0.22895714,86108.0,86107.0,0.00896035]
[1741423573557,0.22895714,86108.0,86107.0,0.00011641]
[1741423575057,0.11281464,86108.0,86107.0,0.00011641]
[1741423575254,0.11281464,86108.0,86107.0,0.11626021]
[1741423576060,0.11281464,86108.0,86107.0,0.30226021]
[1741423576258,0.11281464,86108.0,86107.0,0.18611641]
[1741423576660,0.04651464,86108.0,86107.0,0.18611641]
[1741423576871,0.10711464,86108.0,86107.0,0.30226021]
[1741423577064,0.22325714,86108.0,86107.0,0.18611641]
[1741423577569,0.22325714,86108.0,86107.0,0.12501641]
[1741423578665,0.10711464,86108.0,86107.0,0.24116021]
[1741423580268,0.04651464,86108.0,86107.0,0.24116021]
[1741423580465,0.3608,86109.0,86108.0,0.1161425]
[1741423580769,0.3608,86109.0,86108.0,0.2441425]
[1741423581560,0.07549418,86116.0,86115.0,0.116133]
[1741423581771,0.12631601,86116.0,86115.0,0.116133]
[1741423582068,0.15541416,86119.0,86118.0,0.116129]
[1741423582258,0.15425416,86119.0,86118.0,0.116129]
[1741423582871,0.27038176,86119.0,86118.0,0.241329]
[1741423583055,0.15425416,86119.0,86118.0,0.241329]
[1741423584462,0.73244001,86125.0,86124.0,0.1161209]
[1741423584662,0.41218813,86128.0,86126.0,0.1161182]
[1741423585164,0.11629098,86127.0,86126.0,0.1161182]
[1741423585368,0.00017418,86127.0,86126.0,0.2421182]
[1741423589871,0.00017418,86127.0,86126.0,0.6029182]
[1741423591173,0.11629098,86127.0,86126.0,0.6029182]
[1741423591473,0.24759098,86127.0,86126.0,0.4868]
[1741423593572,0.60839098,86127.0,86126.0,0.126]
[1741423593779,0.49227418,86127.0,86114.0,0.0006]
[1741423593977,0.058064,86119.0,86115.0,0.00801]
[1741423594274,0.0580651,86117.0,86112.0,0.0604]
[1741423594474,0.1161349,86114.0,86112.0,0.0604]
[1741423594778,0.2367357,86113.0,86112.0,0.0604]
[1741423595875,0.1206,86113.0,86112.0,0.0604]
[1741423597675,0.1206,86113.0,86112.0,0.12747632]
[1741423597976,0.2367357,86113.0,86112.0,0.12747632]
[1741423600671,0.2367357,86113.0,86112.0,0.24361342]
[1741423600868,0.2367357,86113.0,86112.0,0.12747632]
[1741423605677,0.1206,86113.0,86112.0,0.24361342]
[1741423608482,0.2367357,86113.0,86112.0,0.24361342]
[1741423610388,0.2367357,86113.0,86112.0,0.12747632]
[1741423611277,0.1206,86113.0,86112.0,0.24361342]
[1741423614792,0.2367357,86113.0,86112.0,0.24361342]
[1741423617294,0.2367357,86113.0,86112.0,0.2350371]
[1741423618282,0.1206,86113.0,86112.0,0.2350371]
[1741423619693,0.2367357,86113.0,86112.0,0.1189]
[1741423620998,0.106115,86113.0,86112.0,0.1189]
[1741423622687,0.3608,86114.0,86113.0,0.1161357]
[1741423622883,0.4769344,86114.0,86113.0,0.2360357]
[1741423623792,0.4769344,86114.0,86113.0,0.1199]
[1741423624896,0.3608,86114.0,86113.0,0.2360357]
[1741423625095,0.4769344,86114.0,86113.0,0.1199]
[1741423625299,0.5360344,86114.0,86113.0,0.1199]
[1741423626482,0.4199,86114.0,86113.0,0.1199]
[1741423626688,0.3608,86114.0,86113.0,0.2360357]
[1741423627393,0.3608,86114.0,86113.0,0.1199]
[1741423627590,0.4769344,86114.0,86113.0,0.1199]
[1741423627791,0.3608,86114.0,86113.0,0.1199]
[1741423627992,0.3608,86114.0,86113.0,0.2360357]
[1741423628503,0.3608,86114.0,86113.0,0.1199]
[1741423628690,0.18349148,86122.0,86113.0,0.1199]
[1741423628691,0.07528,86119.0,86113.0,0.1199]
[1741423628996,0.09174574,86130.0,86113.0,0.1199]
[1741423629185,0.12666813,86128.0,86126.0,0.1161182]
[1741423629499,0.05138813,86128.0,86126.0,0.1161182]
[1741423630198,0.00108001,86133.0,86132.0,0.1161101]
[1741423630394,0.1160998,86140.0,86139.0,0.1161004]
[1741423630893,0.1161034,86137.0,86136.0,0.1741557]
[1741423631194,0.17297734,86137.0,86131.0,0.1186554]
[1741423631400,0.1161101,86133.0,86132.0,0.116107]
[1741423631699,0.05799677,86137.0,86134.0,0.1741606]
[1741423631901,0.116104,86137.0,86136.0,0.1161047]
[1741423632101,0.17363673,86137.0,86136.0,0.1161047]
[1741423632401,0.17363613,86137.0,86136.0,0.1161047]
[1741423634695,0.05753273,86137.0,86136.0,0.1161047]
[1741423634896,0.0627,86138.0,86137.0,0.1161034]
[1741423635098,0.0627,86138.0,86137.0,0.1801034]
[1741423635299,0.0611,86143.0,86142.0,0.1160966]
[1741423635499,0.0611,86143.0,86142.0,0.1800966]
[1741423636401,0.0627,86144.0,86143.0,0.1160953]
[1741423636594,0.29691595,86144.0,86143.0,0.1800953]
[1741423636797,0.11972205,86144.0,86143.0,0.1800953]
[1741423636997,0.23581595,86144.0,86143.0,0.1800953]
[1741423637194,0.29691595,86144.0,86143.0,0.1800953]
[1741423637395,0.18082205,86144.0,86143.0,0.1800953]
[1741423639105,0.11972205,86144.0,86143.0,0.1800953]
[1741423639996,0.05702205,86144.0,86143.0,0.1800953]
[1741423640201,0.00017418,86145.0,86143.0,0.1800953]
[1741423640406,0.00017418,86145.0,86144.0,0.1160939]
[1741423640794,0.00017418,86145.0,86144.0,0.1766939]
[1741423641101,0.00014144,86150.0,86149.0,0.1160872]
[1741423641499,0.0614,86155.0,86154.0,0.1160805]
[1741423642104,0.1774791,86155.0,86154.0,0.1160805]
[1741423642901,0.1160791,86155.0,86154.0,0.1160805]
[1741423643095,0.17415935,86155.0,86154.0,0.1160805]
[1741423643518,0.05808025,86155.0,86154.0,0.1160805]
[1741423643806,9.049e-05,86156.0,86155.0,0.1160791]
[1741423644109,0.05702167,86156.0,86155.0,0.1765791]
[1741423644310,9.049e-05,86156.0,86155.0,0.1765791]
[1741423645209,0.05833324,86156.0,86155.0,0.1765791]
[1741423645411,0.05833324,86156.0,86155.0,0.2390791]
[1741423647808,0.17441104,86156.0,86155.0,0.2390791]
[1741423651709,0.1160778,86156.0,86155.0,0.2390791]
[1741423651915,0.10913467,86156.0,86155.0,0.2390791]
[1741423652415,0.16791182,86156.0,86155.0,0.2390791]
[1741423652801,0.16803931,86156.0,86155.0,0.2390791]
[1741423653208,0.10276294,86156.0,86155.0,0.123]
[1741423653401,0.05890464,86156.0,86155.0,0.123]
[1741423654017,0.17498244,86156.0,86155.0,0.123]
[1741423655916,0.17498244,86156.0,86155.0,0.1869]
[1741423656611,0.17498244,86156.0,86155.0,0.3029791]
[1741423657614,0.17498244,86156.0,86155.0,0.1869]
[1741423659321,0.17498244,86156.0,86155.0,0.3029791]
[1741423659814,0.17498244,86156.0,86155.0,0.1869]
[1741423661017,0.05890464,86156.0,86155.0,0.1869]
[1741423661209,0.05890464,86156.0,86155.0,0.3029791]
[1741423661912,0.05602796,86158.0,86155.0,0.3029791]
[1741423662115,0.0615,86157.0,86156.0,0.1160778]
[1741423662515,0.0615,86157.0,86156.0,0.2392778]
[1741423662915,0.06164488,86157.0,86156.0,0.1232]
[1741423663112,0.17772128,86157.0,86156.0,0.1232]
[1741423663421,0.1124434,86157.0,86156.0,0.1232]
[1741423664325,0.00014434,86157.0,86156.0,0.1232]
[1741423664623,0.00014434,86157.0,86156.0,0.2392778]
[1741423665019,0.17642074,86157.0,86156.0,0.1232]
[1741423666523,0.23822074,86157.0,86156.0,0.2392778]
[1741423667515,0.12214434,86157.0,86156.0,0.2392778]
[1741423667925,0.23822074,86157.0,86156.0,0.1232]
[1741423668317,0.15843896,86157.0,86156.0,0.1232]
[1741423669119,0.07865718,86157.0,86156.0,0.1232]
[1741423669318,0.07875804,86157.0,86156.0,0.1232]
[1741423671523,0.14185804,86157.0,86156.0,0.2392778]
[1741423671926,0.06320086,86157.0,86156.0,0.1232]
[1741423672119,0.0554442,86158.0,86156.0,0.1232]
[1741423672323,0.1160739,86159.0,86157.0,0.1160764]
[1741423672521,0.0594,86161.0,86156.0,0.1232]
[1741423672729,0.0580364,86160.0,86156.0,0.2392775]
[1741423672923,0.1160759,86158.0,86156.0,0.2392775]
[1741423673125,0.00010344,86157.0,86156.0,0.2392775]
[1741423673325,0.05090329,86158.0,86156.0,0.2392775]
[1741423673531,0.05090329,86158.0,86156.0,0.1232]
[1741423673729,0.05090329,86158.0,86157.0,0.1160764]
[1741423674121,0.53718175,86161.0,86157.0,0.1242]
[1741423674317,0.00014782,86160.0,86158.0,0.1160747]
[1741423674533,0.00014782,86160.0,86157.0,0.1242]
[1741423674727,0.1160751,86158.0,86157.0,0.1242]
[1741423675722,0.1160751,86158.0,86157.0,0.2402764]
[1741423675918,0.1160746,86159.0,86158.0,0.1160743]
[1741423676324,0.1160746,86159.0,86158.0,0.27996425]
[1741423676524,0.1160746,86159.0,86158.0,0.16388995]
[1741423677326,0.1707746,86159.0,86158.0,0.16388995]
[1741423679034,0.0547,86159.0,86158.0,0.16388995]
[1741423679724,0.1707744,86159.0,86158.0,0.16388995]
[1741423680945,0.1707744,86159.0,86158.0,0.08320624]
[1741423681127,0.1794744,86159.0,86158.0,0.08320624]
[1741423681332,0.1794737,86159.0,86158.0,0.08320624]
[1741423681641,0.0634,86159.0,86158.0,0.19928134]
[1741423682232,0.0634,86159.0,86158.0,0.08320624]
[1741423682429,0.11419712,86159.0,86158.0,0.08320624]
[1741423683348,0.04892055,86159.0,86158.0,0.08320624]
[1741423685045,0.00014782,86160.0,86149.0,0.09810723]
[1741423685236,0.0580404,86154.0,86149.0,0.1160864]
[1741423685545,0.0994,86153.0,86149.0,0.1160864]
[1741423685735,0.0994,86153.0,86150.0,0.1160857]
[1741423686044,0.2735234,86153.0,86149.0,0.1160864]
[1741423686235,0.0994,86153.0,86152.0,0.1160832]
[1741423686437,0.0586,86153.0,86152.0,0.1160832]
[1741423687942,0.09189356,86160.0,86150.0,0.0580425]
[1741423688136,0.09189356,86160.0,86159.0,0.1160737]
[1741423688341,0.00014782,86160.0,86150.0,0.0580425]
[1741423688538,0.1160812,86154.0,86153.0,0.1160818]
[1741423688945,0.058039,86156.0,86147.0,0.3702235]
[1741423689146,0.058039,86156.0,86155.0,0.1160791]
[1741423689942,0.058039,86156.0,86155.0,0.2359791]
[1741423692645,0.11369954,86158.0,86155.0,0.2359791]
[1741423692847,0.0629,86158.0,86155.0,0.2359791]
[1741423693052,0.0629,86158.0,86157.0,0.1160764]
[1741423693351,0.1160751,86158.0,86157.0,0.1160764]
[1741423693745,0.11872545,86159.0,86157.0,0.1160764]
[1741423693951,0.23480015,86159.0,86158.0,0.1160751]
[1741423694453,0.11872545,86159.0,86158.0,0.2429751]
[1741423694750,0.00014782,86160.0,86159.0,0.1160737]
[1741423695142,0.00014782,86160.0,86159.0,0.2429737]
[1741423695744,0.11622022,86160.0,86159.0,0.2429737]
[1741423696647,0.00014782,86160.0,86159.0,0.2429737]
[1741423697644,0.06024782,86160.0,86159.0,0.2429737]
[1741423697844,0.12024782,86160.0,86159.0,0.2429737]
[1741423698757,0.23632022,86160.0,86159.0,0.1269]
[1741423699654,0.59712022,86160.0,86159.0,0.1269]
[1741423700858,0.23632022,86160.0,86159.0,0.1269]
[1741423701063,0.12024782,86160.0,86159.0,0.1269]
[1741423701257,0.00014782,86160.0,86159.0,0.2429737]
[1741423701457,0.36097418,86163.0,86160.0,0.1160724]
[1741423701662,0.36097418,86163.0,86162.0,0.1160697]
[1741423702355,0.05697806,86163.0,86162.0,0.2342697]
[1741423702849,0.1160638,86167.0,86166.0,0.1160629]
[1741423703046,0.0580303,86169.0,86168.0,0.1160616]
[1741423703252,0.43824403,86170.0,86168.0,0.1160616]
[1741423703452,0.43712402,86170.0,86167.0,0.1209]
[1741423703647,0.1160616,86168.0,86167.0,0.1209]
[1741423703856,0.11618509,86168.0,86167.0,0.2369629]
[1741423706757,0.00012349,86168.0,86167.0,0.2369629]
[1741423709460,0.1765773,86170.0,86169.0,0.1160603]
[1741423709461,0.17549729,86170.0,86169.0,0.1160603]
[1741423710564,0.17563704,86170.0,86169.0,0.1160603]
[1741423712257,0.11917784,86170.0,86167.0,0.1209]
[1741423712457,0.11917784,86170.0,86167.0,0.236962]
[1741423712458,0.1160616,86168.0,86167.0,0.236962]
[1741423712866,0.0507926,86168.0,86167.0,0.236962]
[1741423713470,0.16470144,86170.0,86167.0,0.236962]
[1741423713765,0.28076134,86170.0,86169.0,0.1160603]
[1741423714553,0.16470144,86170.0,86169.0,0.1160603]
[1741423714759,0.04510144,86170.0,86169.0,0.1160603]
[1741423716862,0.00017359,86176.0,86175.0,0.1160522]
[1741423717868,0.11631929,86176.0,86175.0,0.2355522]
[1741423718169,0.17575725,86176.0,86175.0,0.2355522]
[1741423720769,0.05970645,86176.0,86175.0,0.2355522]
[1741423723271,0.3608,86182.0,86175.0,0.2355522]
[1741423723272,0.11049289,86180.0,86175.0,0.2355522]
[1741423723467,0.11049289,86180.0,86179.0,0.1160468]
[1741423723672,0.5348659,86182.0,86181.0,0.1160441]
[1741423723870,0.59262351,86182.0,86181.0,0.1160441]
[1741423724171,0.65262351,86182.0,86181.0,0.1160441]
[1741423724373,0.65272655,86182.0,86181.0,0.1160441]
[1741423724574,0.65272655,86182.0,86181.0,0.2392441]
[1741423724871,0.47866065,86182.0,86181.0,0.2392441]
[1741423725072,0.59470335,86182.0,86181.0,0.2392441]
[1741423725462,0.65580335,86182.0,86181.0,0.2392441]
[1741423725862,0.41866065,86182.0,86181.0,0.2392441]
[1741423727071,0.41866065,86182.0,86181.0,0.05490104]
[1741423727259,0.53470335,86182.0,86181.0,0.05490104]
[1741423728167,0.65290335,86182.0,86181.0,0.05490104]
[1741423729165,0.65290335,86182.0,86180.0,4e-05]
[1741423729166,0.53686065,86182.0,86150.0,0.37108794]
[1741423729470,0.0580288,86171.0,86168.0,0.0625]
[1741423729773,0.1169,86170.0,86169.0,0.1160603]
[1741423730160,0.1169,86170.0,86169.0,0.1757603]
[1741423730674,0.36188001,86172.0,86171.0,0.1160576]
[1741423730875,0.1160528,86175.0,86174.0,0.1160535]
[1741423731076,0.1747528,86175.0,86174.0,0.1160535]
[1741423731280,0.2365528,86175.0,86174.0,0.1160535]
[1741423733278,0.17128877,86175.0,86174.0,0.1160535]
[1741423734270,0.05523723,86175.0,86174.0,0.1160535]
[1741423735176,0.17128943,86175.0,86174.0,0.1160535]
[1741423735776,0.05523723,86175.0,86174.0,0.1160535]
[1741423737775,0.53208943,86175.0,86174.0,0.1160535]
[1741423737975,0.59058943,86175.0,86174.0,0.1160535]
[1741423738683,0.41603723,86175.0,86174.0,0.1160535]
[1741423738981,0.3608,86175.0,86174.0,0.1160535]
[1741423739369,0.0623,86181.0,86174.0,0.1160535]
[1741423739574,0.1783441,86181.0,86180.0,0.1160454]
[1741423739774,0.1160441,86181.0,86180.0,0.1160454]
[1741423739975,0.1783441,86181.0,86180.0,0.1160454]
[1741423740379,0.1783441,86181.0,86180.0,0.1742454]
[1741423740581,0.2368441,86181.0,86180.0,0.1742454]
[1741423742273,0.2368441,86181.0,86180.0,0.0582]
[1741423742885,0.2368441,86181.0,86180.0,0.1742454]
[1741423743183,0.1208,86181.0,86180.0,0.1742454]
[1741423743484,0.05553869,86181.0,86180.0,0.1742454]
[1741423743791,0.41866065,86182.0,86181.0,0.1160441]
[1741423744085,0.41866065,86182.0,86181.0,0.1774441]
[1741423744381,0.35340042,86182.0,86181.0,0.1774441]
[1741423745180,0.46944312,86182.0,86181.0,0.1774441]
[1741423745381,0.46944312,86182.0,86181.0,0.0614]
[1741423746786,0.35340042,86182.0,86181.0,0.1774441]
[1741423747380,0.05786065,86182.0,86181.0,0.1774441]
[1741423749783,0.17390335,86182.0,86181.0,0.1774441]
[1741423750781,0.11614574,86182.0,86181.0,0.1774441]
[1741423750983,0.0752,86184.0,86181.0,0.0614]
[1741423751189,0.1334567,86184.0,86183.0,0.1160414]
[1741423751391,0.1334567,86184.0,86182.0,0.0626]
[1741423751702,0.1160414,86183.0,86182.0,0.1786427]
[1741423751895,0.1334567,86184.0,86183.0,0.1160414]
[1741423752101,0.24958647,86184.0,86183.0,0.1743414]
[1741423752596,0.13354637,86184.0,86183.0,0.1743414]
[1741423753099,0.24958647,86184.0,86183.0,0.1743414]
[1741423753600,0.17438647,86184.0,86183.0,0.1743414]
[1741423753797,0.05834637,86184.0,86183.0,0.1743414]
[1741423754791,0.10913424,86185.0,86183.0,0.1743414]
[1741423755093,0.10913424,86185.0,86184.0,0.1160401]
[1741423755497,0.10913424,86185.0,86184.0,0.1795401]
[1741423756001,0.10927632,86185.0,86184.0,0.1795401]
[1741423756204,0.16631207,86185.0,86184.0,0.1795401]
[1741423760505,0.16631207,86185.0,86184.0,0.0635]
[1741423761004,0.16631207,86185.0,86184.0,0.1795401]
[1741423761804,0.05717783,86185.0,86184.0,0.1795401]
[1741423763306,0.11667783,86185.0,86184.0,0.1795401]
[1741423763507,0.05142058,86185.0,86184.0,0.1795401]
[1741423763701,0.0535,86188.0,86184.0,0.0635]
[1741423763907,0.1160369,86187.0,86186.0,0.1160361]
[1741423764105,0.1160387,86185.0,86184.0,0.0580194]
[1741423764500,0.11614325,86185.0,86184.0,0.0580194]
[1741423765309,0.11015463,86185.0,86184.0,0.0580194]
[1741423766300,0.11015463,86185.0,86183.0,0.0623]
[1741423766301,0.05937248,86185.0,86183.0,0.0623]
[1741423766512,0.1695401,86184.0,86183.0,0.0623]
[1741423766704,0.2210401,86184.0,86183.0,0.1783414]
[1741423767102,0.1160401,86184.0,86183.0,0.1783414]
[1741423769106,0.1160401,86184.0,86183.0,0.0623]
[1741423769504,0.1160401,86184.0,86183.0,0.1783414]
[1741423770507,0.2210401,86184.0,86183.0,0.1783414]
[1741423770998,0.05937248,86185.0,86183.0,0.1783414]
[1741423771201,0.05937248,86185.0,86184.0,0.1160401]
[1741423771602,0.05937248,86185.0,86184.0,0.1801401]
[1741423772102,0.17541118,86185.0,86184.0,0.1801401]
[1741423773204,0.17541118,86185.0,86184.0,0.0641]
[1741423773614,0.11015347,86185.0,86184.0,0.0641]
[1741423774408,0.47095347,86185.0,86184.0,0.0641]
[1741423774607,0.1160414,86183.0,86179.0,0.02451141]
[1741423774812,0.1160454,86180.0,86179.0,4e-05]
[1741423775014,0.07516,86180.0,86159.0,0.3608]
[1741423775213,0.1160655,86166.0,86164.0,0.1160666]
[1741423775411,0.0506,86165.0,86164.0,0.1160666]
[1741423775715,0.1644,86165.0,86164.0,0.1160666]
[1741423775913,0.09913239,86165.0,86164.0,0.1160666]
[1741423777013,0.09913239,86165.0,86164.0,0.116067]
[1741423777014,0.21519879,86165.0,86164.0,0.116067]
[1741423777609,0.09913239,86165.0,86164.0,0.116067]
[1741423778616,0.21519799,86165.0,86164.0,0.116067]
[1741423779509,0.16219799,86165.0,86164.0,0.116067]
[1741423779712,0.04613239,86165.0,86164.0,0.116067]
[1741423780020,0.1160619,86168.0,86167.0,0.1160629]
[1741423780318,0.1768619,86168.0,86167.0,0.1160629]
[1741423780911,0.0608,86168.0,86167.0,0.1781629]
[1741423782320,0.1768616,86168.0,86167.0,0.1781629]
[1741423783406,0.1768616,86168.0,86167.0,0.0621]
[1741423784119,0.1768616,86168.0,86167.0,0.1259]
[1741423784711,0.11159366,86168.0,86167.0,0.1259]
[1741423785922,0.053,86169.0,86167.0,0.1259]
[1741423786109,0.09174574,86170.0,86169.0,0.1160603]
[1741423786315,0.20780464,86170.0,86169.0,0.1160603]
[1741423786715,0.20780464,86170.0,86169.0,0.1223]
[1741423787517,0.09174574,86170.0,86169.0,0.2383603]
[1741423787714,0.20780464,86170.0,86169.0,0.10345659]
[1741423791131,0.20780464,86170.0,86169.0,0.00110137]
[1741423791314,0.1381589,86170.0,86169.0,0.00110137]
[1741423792825,0.1381589,86170.0,86169.0,0.04083889]
[1741423795919,0.1160589,86170.0,86169.0,0.21769919]
[1741423796121,0.1160589,86170.0,86169.0,0.10163889]
[1741423796524,0.1160589,86170.0,86169.0,0.21769919]
[1741423796926,0.0507907,86170.0,86169.0,0.10163889]
[1741423799324,0.0507907,86170.0,86169.0,0.21769919]
[1741423799522,0.0507907,86170.0,86169.0,0.10163889]
[1741423799717,0.053,86171.0,86169.0,0.10163889]
[1741423799923,0.1545801,86171.0,86170.0,0.03973752]
[1741423800431,0.1545801,86171.0,86170.0,0.09883752]
[1741423800833,0.2136801,86171.0,86170.0,0.03973752]
[1741423801430,0.2136801,86171.0,86170.0,0.02444226]
[1741423801732,0.2136801,86171.0,86163.0,0.14050996]
[1741423801733,0.1160666,86165.0,86163.0,0.14050996]
[1741423801923,0.116067,86164.0,86162.0,0.2321379]
[1741423802319,0.0591,86171.0,86161.0,0.05322]
[1741423802524,0.3608,86165.0,86142.0,0.3608]
[1741423802832,0.1160849,86151.0,86150.0,0.1160846]
[1741423803029,0.1160879,86149.0,86145.0,0.0580459]
[1741423803234,0.1160847,86151.0,86145.0,0.0580459]
[1741423803433,0.1160847,86151.0,86149.0,0.1160867]
[1741423803629,0.1160847,86151.0,86150.0,0.11618628]